bitfinex-derivatives/quotes_BNBF0:USTF0_20250128
["timestamp","ask_amount","ask_price","bid_price","bid_amount"]
[1738027580592,0.242675,677.55,676.26,0.29574424]
[1738027580898,0.29518552,677.54,676.26,0.29574424]
[1738027581098,1.09786583,677.5,676.26,0.29574424]
[1738027581298,0.242675,677.49,676.26,0.29574424]
[1738027581499,0.53788328,677.48,676.26,0.29574424]
[1738027581799,0.24267162,677.47,676.26,0.29574424]
[1738027583202,0.29521166,677.48,676.26,0.29574424]
[1738027583501,0.24266615,677.47,676.26,0.29574424]
[1738027583701,1.09786583,677.46,676.26,0.29574424]
[1738027583895,0.24266615,677.45,676.26,0.29574424]
[1738027585203,0.24262433,677.44,676.26,0.29574424]
[1738027585402,0.24262433,677.43,676.26,0.29574424]
[1738027585602,0.24262433,677.42,676.26,0.29574424]
[1738027585802,0.24262433,677.41,676.26,0.29574424]
[1738027586001,0.24262433,677.4,676.26,0.29574424]
[1738027586203,0.24262433,677.39,676.26,0.29574424]
[1738027586501,0.24262433,677.38,676.26,0.29574424]
[1738027586699,0.24262433,677.45,676.26,0.29574424]
[1738027586903,0.24262433,677.44,676.26,0.29574424]
[1738027587102,1.09786583,677.46,676.26,0.29574424]
[1738027587103,1.09786583,677.26,676.26,0.29574424]
[1738027587404,0.24262433,677.25,676.26,0.29574424]
[1738027588205,1.09786583,677.26,676.26,0.29574424]
[1738027591211,1.54284384,677.35,676.26,0.29574424]
[1738027602922,0.24266404,677.34,676.26,0.29574424]
[1738027605223,1.54284384,677.35,676.26,0.29574424]
[1738027605723,1.09786583,677.23,676.26,0.29574424]
[1738027609524,1.54284384,677.35,676.26,0.29574424]
[1738027612327,1.09786583,677.33,676.26,0.29574424]
[1738027615029,0.24271343,677.32,676.26,0.29574424]
[1738027615430,1.09786583,677.3,676.26,0.29574424]
[1738027615629,0.24271343,677.29,676.26,0.29574424]
[1738027617632,0.24272046,677.28,676.26,0.29574424]
[1738027617832,0.24272046,677.27,676.26,0.29574424]
[1738027618031,1.09786583,677.3,676.26,0.29574424]
[1738027618233,0.24272573,677.29,676.26,0.29574424]
[1738027618433,1.09786583,677.18,676.26,0.29574424]
[1738027621736,1.09786583,677.11,676.26,0.29574424]
[1738027625141,1.09786583,677.14,676.26,0.29574424]
[1738027632843,1.09786583,677.19,676.26,0.29574424]
[1738027635444,1.09786583,677.18,676.26,0.29574424]
[1738027638242,0.24286095,677.17,676.26,0.29574424]
[1738027638447,1.09786583,677.15,676.26,0.29574424]
[1738027639346,0.24286039,677.14,676.26,0.29574424]
[1738027642750,1.09786583,677.06,676.26,0.29574424]
[1738027644551,0.24283378,677.05,676.26,0.29574424]
[1738027646953,1.09786583,676.99,676.26,0.29574424]
[1738027658765,1.09786583,677.02,676.26,0.29574424]
[1738027661466,1.09786583,677.1,676.26,0.29574424]
[1738027664869,1.09786583,677.0,676.26,0.29574424]
[1738027668071,1.09786583,677.53,676.26,0.29574424]
[1738027668472,0.24270536,677.47,676.26,0.29574424]
[1738027669771,0.24270536,677.47,676.27,0.27151705]
[1738027669976,0.24270536,677.47,676.26,0.29574424]
[1738027671079,1.09786583,677.39,676.26,0.29574424]
[1738027671377,0.24270536,677.38,676.27,0.2715209]
[1738027671577,0.24270536,677.38,676.28,0.29573549]
[1738027673079,1.09786583,677.39,676.28,0.29573549]
[1738027674381,1.09786583,677.46,676.28,0.29573549]
[1738027677280,1.09786583,677.6,676.28,0.29573549]
[1738027680486,1.09786583,677.7,676.28,0.29573549]
[1738027686390,2.24147607,678.48,676.28,0.29573549]
[1738027686391,1.09786583,677.75,676.28,0.29573549]
[1738027688893,1.09786583,677.74,676.28,0.29573549]
[1738027692689,0.24272842,677.47,676.28,0.29573549]
[1738027694390,1.09786583,677.7,676.28,0.29573549]
[1738027694695,0.24268748,677.47,676.28,0.29573549]
[1738027695191,1.09786583,677.38,676.28,0.29573549]
[1738027695596,0.24268748,677.37,676.28,0.29573549]
[1738027698198,1.09786583,677.31,676.28,0.29573549]
[1738027698397,0.24268748,677.3,676.28,0.29573549]
[1738027698896,1.09786583,677.31,676.28,0.29573549]
[1738027699099,0.24267762,677.3,676.28,0.29573549]
[1738027700598,1.09786583,677.31,676.28,0.29573549]
[1738027701599,1.09786583,677.35,676.28,0.29573549]
[1738027704895,1.09786583,677.54,676.28,0.29573549]
[1738027705796,1.54280964,677.47,676.28,0.29573549]
[1738027706101,0.29522038,677.46,676.28,0.29573549]
[1738027710601,0.24255028,677.45,676.28,0.29573549]
[1738027711502,0.29522909,677.44,676.28,0.29573549]
[1738027711803,0.24255028,677.43,676.28,0.29573549]
[1738027712002,0.29523781,677.42,676.28,0.29573549]
[1738027712198,0.24255028,677.41,676.28,0.29573549]
[1738027712402,0.29524653,677.4,675.44,1.1042865]
[1738027712602,0.24255028,677.39,675.46,0.29609451]
[1738027712903,0.29525524,677.38,675.47,0.27169336]
[1738027713098,0.24255028,677.37,675.49,0.29608136]
[1738027713301,0.29526396,677.36,675.5,0.27169336]
[1738027713500,0.29526396,677.36,675.44,1.1042865]
[1738027713501,0.29526396,677.36,675.52,0.29606821]
[1738027713697,0.24250317,677.35,675.53,0.27166605]
[1738027713899,0.29527268,677.34,675.55,0.29605506]
[1738027714101,0.24250317,677.33,675.56,0.27166605]
[1738027714299,0.2952814,677.32,675.58,0.29604191]
[1738027714497,0.24250317,677.31,675.59,0.27166605]
[1738027714702,0.29529012,677.3,675.61,0.29602877]
[1738027714899,0.24250317,677.29,675.62,0.27166605]
[1738027715103,0.24250317,677.29,675.64,0.29601562]
[1738027715403,0.24250317,677.29,675.65,0.27166605]
[1738027715605,0.53779765,677.29,675.65,0.27166605]
[1738027715802,0.24250317,677.28,675.65,0.27166605]
[1738027716202,0.24250317,677.28,675.67,0.29600248]
[1738027716502,0.24250317,677.28,675.68,0.27166605]
[1738027717404,0.24250317,677.28,675.7,0.29598934]
[1738027717607,1.09786583,677.27,675.71,0.27166605]
[1738027717803,0.24250317,677.26,675.73,0.2959762]
[1738027720508,0.29531192,677.25,675.73,0.2959762]
[1738027720710,0.24250317,677.24,675.73,0.2959762]
[1738027722605,0.29532064,677.23,675.73,0.2959762]
[1738027722808,0.24250317,677.22,675.73,0.2959762]
[1738027723612,0.29532936,677.21,675.73,0.2959762]
[1738027723810,0.24250317,677.2,675.73,0.2959762]
[1738027724012,0.53785772,677.19,675.73,0.2959762]
[1738027724309,0.29534244,677.18,675.73,0.2959762]
[1738027724606,0.24252285,677.17,675.73,0.2959762]
[1738027724811,0.29535117,677.16,675.73,0.2959762]
[1738027725110,0.24252285,677.15,675.73,0.2959762]
[1738027725411,0.29535989,677.14,675.73,0.2959762]
[1738027725609,0.24252285,677.13,675.73,0.2959762]
[1738027726414,0.29536862,677.12,675.73,0.2959762]
[1738027726607,0.24252285,677.11,675.73,0.2959762]
[1738027727911,0.24252285,677.11,675.74,0.27175663]
[1738027728809,0.29537734,677.1,675.74,0.27175663]
[1738027729013,0.24252285,677.09,675.74,0.27175663]
[1738027729708,0.29538606,677.08,675.73,0.2959762]
[1738027729915,0.24254841,677.07,675.74,0.27175444]
[1738027730610,1.09786583,677.04,675.74,0.27175444]
[1738027730808,0.24254841,677.03,675.74,0.27175444]
[1738027733411,1.09786583,677.04,675.75,0.27174939]
[1738027733616,0.24258385,677.03,675.73,0.2959762]
[1738027737511,0.24258385,677.07,675.73,0.2959762]
[1738027737716,0.29539479,677.06,675.73,0.2959762]
[1738027737917,0.24258385,677.05,675.73,0.2959762]
[1738027738111,0.537983,677.05,675.73,0.2959762]
[1738027738317,0.24258385,677.04,675.73,0.2959762]
[1738027741321,0.29540788,677.03,675.73,0.2959762]
[1738027741521,0.24258385,677.02,675.73,0.2959762]
[1738027741819,0.53800009,677.01,675.73,0.2959762]
[1738027742020,0.53800445,677.0,675.73,0.2959762]
[1738027742315,0.24258348,676.99,675.73,0.2959762]
[1738027742619,0.29542097,677.0,675.73,0.2959762]
[1738027743822,0.24255646,676.99,675.73,0.2959762]
[1738027745016,1.54361945,676.98,675.73,0.2959762]
[1738027745320,0.24255646,676.97,675.73,0.2959762]
[1738027747223,1.54361945,676.98,675.73,0.2959762]
[1738027747424,0.24256226,676.97,675.73,0.2959762]
[1738027748927,1.09786583,676.89,675.73,0.2959762]
[1738027749126,0.24256226,676.88,675.73,0.2959762]
[1738027749326,0.24255071,676.87,675.73,0.2959762]
[1738027749625,0.24255071,676.86,675.73,0.2959762]
[1738027749826,0.24255071,676.88,675.73,0.2959762]
[1738027750126,0.24255071,676.87,675.73,0.2959762]
[1738027750421,0.24255071,676.86,675.73,0.2959762]
[1738027750626,0.24255071,676.88,675.73,0.2959762]
[1738027750825,0.24255071,676.87,675.73,0.2959762]
[1738027751023,0.24255071,676.88,675.73,0.2959762]
[1738027751222,0.24255071,676.87,675.73,0.2959762]
[1738027751527,0.24255071,676.86,675.73,0.2959762]
[1738027751726,1.34041654,676.85,675.73,0.2959762]
[1738027751924,0.24255071,676.84,675.73,0.2959762]
[1738027752621,1.09786583,676.85,675.73,0.2959762]
[1738027752826,0.2425522,676.84,675.73,0.2959762]
[1738027754624,1.09786583,676.85,675.73,0.2959762]
[1738027754829,0.24254776,676.84,675.73,0.2959762]
[1738027755430,1.09786583,676.76,675.73,0.2959762]
[1738027757530,0.24258486,676.75,675.73,0.2959762]
[1738027758031,0.24258486,676.76,675.73,0.2959762]
[1738027758232,0.24258486,676.74,675.73,0.2959762]
[1738027758432,0.24258486,676.73,675.73,0.2959762]
[1738027758731,0.24258486,676.76,675.73,0.2959762]
[1738027758932,1.09786583,676.77,675.73,0.2959762]
[1738027759131,0.24257577,676.76,675.73,0.2959762]
[1738027760425,1.09786583,676.77,675.73,0.2959762]
[1738027761030,1.09786583,676.72,675.73,0.2959762]
[1738027764432,1.09786583,676.76,675.73,0.2959762]
[1738027767544,0.24254251,676.75,675.73,0.2959762]
[1738027772943,1.09786583,676.71,675.73,0.2959762]
[1738027773339,0.24251668,676.7,675.73,0.2959762]
[1738027775947,1.09786583,676.65,675.73,0.2959762]
[1738027778849,1.09786583,676.66,675.73,0.2959762]
[1738027782152,1.09786583,676.9,675.73,0.2959762]
[1738027786457,1.09786583,676.88,675.73,0.2959762]
[1738027787258,0.24247438,676.87,675.73,0.2959762]
[1738027788054,0.24247219,676.86,675.73,0.2959762]
[1738027788253,0.24247219,676.87,675.73,0.2959762]
[1738027788459,0.24247219,676.86,675.73,0.2959762]
[1738027788659,0.24247219,676.87,675.73,0.2959762]
[1738027788853,0.24247219,676.86,675.73,0.2959762]
[1738027789054,0.24247219,676.87,675.73,0.2959762]
[1738027789260,0.24247219,676.86,675.73,0.2959762]
[1738027789460,0.24247219,676.87,675.73,0.2959762]
[1738027789861,1.09786583,676.58,675.73,0.2959762]
[1738027793056,1.09786583,676.63,675.73,0.2959762]
[1738027795465,1.09786583,676.61,675.73,0.2959762]
[1738027798569,1.09786583,676.83,675.73,0.2959762]
[1738027798570,1.09786583,676.62,675.73,0.2959762]
[1738027801469,1.09786583,676.59,675.73,0.2959762]
[1738027804574,1.09786583,676.76,675.73,0.2959762]
[1738027805581,0.24242209,676.75,675.73,0.2959762]
[1738027807582,1.09786583,676.61,675.73,0.2959762]
[1738027807783,0.24238863,676.6,675.73,0.2959762]
[1738027808684,1.09786583,676.61,675.73,0.2959762]
[1738027810886,1.09786583,676.58,675.73,0.2959762]
[1738027813686,1.09786583,676.68,675.73,0.2959762]
[1738027816485,1.09786583,676.81,675.73,0.2959762]
[1738027816787,0.24233489,676.8,675.73,0.2959762]
[1738027817779,1.09786583,676.81,675.73,0.2959762]
[1738027818086,0.24244441,676.8,675.73,0.2959762]
[1738027819586,0.24244441,676.82,675.73,0.2959762]
[1738027819788,1.09786583,676.83,675.73,0.2959762]
[1738027819984,0.2424511,676.82,675.73,0.2959762]
[1738027820790,1.09786583,676.83,675.73,0.2959762]
[1738027821087,0.24244738,676.82,675.73,0.2959762]
[1738027822090,1.09786583,676.79,675.73,0.2959762]
[1738027822290,0.24244738,676.78,675.73,0.2959762]
[1738027824490,1.09786583,676.79,675.73,0.2959762]
[1738027824692,0.24246902,676.78,675.73,0.2959762]
[1738027825989,1.09786583,676.8,675.73,0.2959762]
[1738027826289,0.24248685,676.79,675.73,0.2959762]
[1738027828290,1.09786583,676.8,675.73,0.2959762]
[1738027828590,0.24249664,676.79,675.73,0.2959762]
[1738027828990,0.24249664,676.81,675.73,0.2959762]
[1738027829189,0.24249664,676.8,675.73,0.2959762]
[1738027829390,0.24249664,676.81,675.73,0.2959762]
[1738027831195,1.34036247,676.81,675.73,0.2959762]
[1738027831493,0.24249664,676.8,675.73,0.2959762]
[1738027833391,1.09786583,676.81,675.73,0.2959762]
[1738027834196,0.29542097,677.0,675.73,0.2959762]
[1738027834197,1.09786583,676.76,675.73,0.2959762]
[1738027837098,1.09786583,676.89,675.73,0.2959762]
[1738027840302,1.09786583,676.92,675.73,0.2959762]
[1738027843609,0.29542097,677.0,675.73,0.2959762]
[1738027843905,0.2425538,676.99,675.73,0.2959762]
[1738027847010,0.29542097,677.0,675.73,0.2959762]
[1738027847309,0.24254269,676.99,675.73,0.2959762]
[1738027850706,0.29542097,677.0,675.73,0.2959762]
[1738027851010,0.24254587,676.99,675.73,0.2959762]
[1738027852513,0.29542097,677.0,675.73,0.2959762]
[1738027852715,1.09786583,676.88,675.73,0.2959762]
[1738027852908,0.24254703,676.87,675.73,0.2959762]
[1738027853216,0.24254703,676.87,675.74,0.2717327]
[1738027854111,1.09786583,676.88,675.73,0.2959762]
[1738027854915,1.09786583,676.88,675.74,0.27172966]
[1738027854916,0.2425682,676.87,675.74,0.27172966]
[1738027855116,1.09786583,676.88,675.74,0.27172966]
[1738027855318,1.09786583,676.88,675.75,0.27172863]
[1738027855615,1.09786583,676.88,675.73,0.2959762]
[1738027855817,1.09786583,676.88,675.74,0.271728]
[1738027856015,0.24256333,676.87,675.74,0.271728]
[1738027856213,1.34042916,676.87,675.74,0.271728]
[1738027856418,1.09786583,676.87,675.74,0.271728]
[1738027856617,1.09786583,676.87,675.73,0.2959762]
[1738027858922,0.29542097,677.0,675.73,0.2959762]
[1738027865029,0.24273701,676.99,675.74,0.27169788]
[1738027865327,0.24273701,676.99,675.75,0.29596744]
[1738027865528,0.29542097,677.0,675.75,0.29596744]
[1738027866424,0.29542097,677.0,675.76,0.27167936]
[1738027866627,0.29542097,677.0,675.77,0.29595868]
[1738027866829,0.29542097,677.0,675.78,0.27167936]
[1738027867024,0.29542097,677.0,675.79,0.29594992]
[1738027873736,0.29542097,677.0,675.8,0.27165252]
[1738027874036,0.29542097,677.0,675.81,0.29594116]
[1738027874234,0.29542097,677.0,675.82,0.27165252]
[1738027875036,1.09786583,677.08,675.82,0.27165252]
[1738027876036,1.09786583,677.08,675.81,0.29594116]
[1738027876242,1.09786583,677.08,675.82,0.27162924]
[1738027876744,1.09786583,677.22,675.82,0.27162924]
[1738027877536,1.09786583,677.22,675.84,0.29592803]
[1738027877736,1.09786583,677.22,675.85,0.27162924]
[1738027878137,1.09786583,677.22,675.87,0.29591489]
[1738027878336,1.09786583,677.22,675.88,0.27162924]
[1738027879438,1.09786583,677.22,675.9,0.29590176]
[1738027879738,1.09786583,677.22,675.91,0.27162924]
[1738027879934,1.09786583,677.22,675.93,0.29588862]
[1738027880135,1.09786583,677.51,675.94,0.27162924]
[1738027880434,0.24283885,677.5,675.96,0.29587549]
[1738027880637,0.24283885,677.5,675.97,0.27162924]
[1738027880834,0.24283885,677.5,675.99,0.29586236]
[1738027882739,1.09786583,677.51,675.99,0.29586236]
[1738027883340,1.09786583,677.64,675.99,0.29586236]
[1738027883533,0.53798716,677.63,675.99,0.29586236]
[1738027883737,0.53799152,677.62,675.99,0.29586236]
[1738027884036,0.53799588,677.61,675.99,0.29586236]
[1738027884235,0.53800023,677.6,675.99,0.29586236]
[1738027884433,0.53800459,677.59,676.0,0.27153772]
[1738027884634,0.24284085,677.58,676.02,0.29584923]
[1738027885140,0.24284085,677.58,676.03,0.27153923]
[1738027885438,0.29516374,677.59,676.04,0.29584048]
[1738027885639,0.24281824,677.58,676.04,0.29584048]
[1738027886440,0.29517245,677.57,676.04,0.29584048]
[1738027886639,0.24281824,677.56,676.04,0.29584048]
[1738027887142,0.29517245,677.57,676.04,0.29584048]
[1738027887342,0.24281052,677.56,676.04,0.29584048]
[1738027887743,0.29518116,677.55,676.04,0.29584048]
[1738027887942,0.24281052,677.54,676.04,0.29584048]
[1738027888842,0.53799604,677.54,676.04,0.29584048]
[1738027889043,0.24281052,677.53,676.04,0.29584048]
[1738027892242,1.09786583,677.43,676.04,0.29584048]
[1738027892443,0.24281052,677.42,676.04,0.29584048]
[1738027892644,1.09786583,677.43,676.04,0.29584048]
[1738027892841,0.24279951,677.42,676.04,0.29584048]
[1738027893348,0.29524217,677.41,676.04,0.29584048]
[1738027893646,0.24280216,677.4,676.04,0.29584048]
[1738027896546,0.242794,677.39,676.04,0.29584048]
[1738027896845,0.242794,677.38,676.04,0.29584048]
[1738027897046,0.242794,677.4,676.04,0.29584048]
[1738027897246,0.242794,677.39,676.04,0.29584048]
[1738027897447,0.242794,677.38,676.04,0.29584048]
[1738027898449,1.09786583,677.39,676.04,0.29584048]
[1738027898650,0.24279657,677.37,676.04,0.29584048]
[1738027898843,0.24279657,677.36,676.04,0.29584048]
[1738027899047,0.29526832,677.35,676.04,0.29584048]
[1738027899246,0.24279657,677.34,676.04,0.29584048]
[1738027901345,1.09786583,677.29,676.04,0.29584048]
[1738027901544,0.24279657,677.28,676.04,0.29584048]
[1738027901844,1.09786583,677.29,676.04,0.29584048]
[1738027902048,0.24280167,677.28,676.04,0.29584048]
[1738027903645,1.09786583,677.29,676.04,0.29584048]
[1738027903848,0.24281341,677.28,676.04,0.29584048]
[1738027904549,1.09786583,677.2,676.04,0.29584048]
[1738027904751,0.24281341,677.19,676.04,0.29584048]
[1738027907046,1.09786583,677.14,676.04,0.29584048]
[1738027907248,0.24281341,677.13,676.04,0.29584048]
[1738027909853,1.09786583,677.05,676.04,0.29584048]
[1738027910046,0.24281341,677.04,676.04,0.29584048]
[1738027912756,1.34067924,677.04,676.04,0.29584048]
[1738027912954,0.24290811,677.03,676.04,0.29584048]
[1738027914354,0.24290811,677.03,676.05,0.27165521]
[1738027914554,0.24290811,677.03,676.04,0.29584048]
[1738027915357,1.09786583,677.04,676.04,0.29584048]
[1738027915653,1.09786583,677.06,676.04,0.29584048]
[1738027918458,1.09786583,677.17,676.04,0.29584048]
[1738027918650,0.24297511,677.16,676.04,0.29584048]
[1738027920059,1.09786583,677.17,676.04,0.29584048]
[1738027922061,1.09786583,677.33,676.04,0.29584048]
[1738027922360,0.24303636,677.32,676.04,0.29584048]
[1738027925361,1.09786583,677.14,676.04,0.29584048]
[1738027928357,0.24302577,677.13,676.04,0.29584048]
[1738027928661,1.09786583,677.14,676.04,0.29584048]
[1738027929164,1.09786583,677.12,676.04,0.29584048]
[1738027931965,1.09786583,677.13,676.05,0.27158975]
[1738027932365,1.09786583,677.13,676.05,0.56742585]
[1738027932566,1.09786583,677.13,676.06,0.27158975]
[1738027934164,1.09786583,677.13,676.07,0.27159151]
[1738027934366,1.09786583,677.13,676.08,0.27159151]
[1738027934565,0.29526832,677.35,676.08,0.27159151]
[1738027934566,1.09786583,677.22,676.08,1.1042865]
[1738027934860,0.24300856,677.21,676.09,0.56741011]
[1738027935065,0.24300856,677.21,676.1,0.27159151]
[1738027935365,0.24300856,677.21,676.1,0.56740573]
[1738027935664,0.24300856,677.21,676.11,0.27159151]
[1738027935865,0.24300856,677.21,676.12,0.29580547]
[1738027936066,0.24300856,677.21,676.13,0.27159151]
[1738027936365,0.24300856,677.21,676.14,0.29579672]
[1738027936765,0.24300856,677.21,676.15,0.27158162]
[1738027936970,0.24300856,677.21,676.16,0.29578797]
[1738027937265,0.24300856,677.21,676.17,0.27158162]
[1738027937467,1.09786583,677.2,676.16,0.29578797]
[1738027937667,0.24301773,677.19,676.16,0.29578797]
[1738027938567,0.24301773,677.19,676.17,0.27158033]
[1738027938968,1.09786583,677.2,676.16,0.29578797]
[1738027939270,1.09786583,677.2,676.17,0.27154962]
[1738027939770,1.09786583,677.22,676.17,0.27154962]
[1738027941163,1.09786583,677.22,676.18,0.29577923]
[1738027941369,1.09786583,677.22,676.19,0.2715446]
[1738027941770,1.09786583,677.22,676.18,0.29577923]
[1738027942269,1.09786583,677.22,676.19,0.27154643]
[1738027942466,0.29526832,677.35,676.2,0.29577048]
[1738027942664,0.2431138,677.34,676.2,0.29577048]
[1738027946572,0.29526832,677.35,676.2,0.29577048]
[1738027946871,0.24308796,677.34,676.2,0.29577048]
[1738027949670,0.24308796,677.34,676.21,0.27155853]
[1738027949867,0.24308796,677.34,676.21,0.56732463]
[1738027950068,0.24308796,677.34,676.21,0.2957661]
[1738027950376,0.2431031,677.33,676.21,0.2957661]
[1738027950572,0.2431031,677.32,676.22,0.27155907]
[1738027950770,1.09786583,677.28,676.22,0.27155907]
[1738027950974,0.2431031,677.27,676.22,0.27155907]
[1738027956076,0.2431031,677.27,676.22,0.5673208]
[1738027956481,0.2431031,677.27,676.23,0.29575736]
[1738027968292,0.2431031,677.27,676.27,1.1042865]
[1738027968487,0.2431031,677.27,676.28,0.29573549]
[1738027970391,1.09786583,677.57,676.28,0.29573549]
[1738027970593,0.24328858,677.56,676.29,0.27155907]
[1738027971391,1.09786583,677.65,676.28,1.40002199]
[1738027971693,1.09786583,677.65,676.29,0.27141434]
[1738027973290,1.09786583,677.65,676.3,0.271405]
[1738027973495,1.09786583,677.65,676.31,0.271405]
[1738027973696,1.09786583,677.65,676.29,0.271405]
[1738027973897,1.09786583,677.65,676.3,0.271405]
[1738027974095,1.09786583,677.65,676.29,0.271405]
[1738027974295,1.09786583,677.65,676.3,0.271405]
[1738027974493,1.09786583,677.83,676.32,1.1042865]
[1738027974792,0.24334294,677.82,676.33,0.271405]
[1738027976698,0.24334294,677.82,676.35,0.29570488]
[1738027976894,0.24333593,677.81,676.36,0.27141383]
[1738027977198,0.24333593,677.8,676.38,0.29569177]
[1738027977400,0.24333593,677.82,676.39,0.27141383]
[1738027977598,1.09786583,677.83,676.39,0.27141383]
[1738027978199,1.09786583,677.87,676.39,0.27141383]
[1738027978596,1.09786583,677.87,676.38,0.29569177]
[1738027978798,1.09786583,677.87,676.39,0.27135592]
[1738027979599,0.24338879,677.86,676.39,0.27135592]
[1738027981101,0.24338879,678.13,676.39,0.27135592]
[1738027981300,0.53832184,678.12,676.39,0.27135592]
[1738027981501,0.24338879,678.11,676.38,0.29569177]
[1738027981699,0.29494174,678.1,676.38,0.29569177]
[1738027981902,0.24338879,678.09,676.38,0.29569177]
[1738027983602,0.29495044,678.08,676.38,0.29569177]
[1738027983902,0.24338879,678.07,676.38,0.29569177]
[1738027984399,0.29495914,678.06,676.38,0.29569177]
[1738027984602,0.24338879,678.05,676.38,0.29569177]
[1738027986003,0.29496784,678.04,676.38,0.29569177]
[1738027986203,0.24338879,678.03,676.38,0.29569177]
[1738027986406,0.29497654,678.02,676.38,0.29569177]
[1738027986605,0.24338879,678.01,676.38,0.29569177]
[1738027987304,0.53827619,678.0,676.38,0.29569177]
[1738027987507,0.53828054,677.99,676.38,0.29569177]
[1738027987705,0.53828489,677.98,676.38,0.29569177]
[1738027987899,0.53828924,677.97,676.38,0.29569177]
[1738027988100,0.24329094,677.96,676.38,0.29569177]
[1738027991102,0.24329094,677.96,676.39,0.27140801]
[1738027991308,0.24329094,677.96,676.4,0.29568302]
[1738027991606,0.24329094,677.96,676.41,0.27140801]
[1738027991808,0.24329094,677.96,676.42,0.29567428]
[1738027992002,0.24329094,677.96,676.43,0.27140801]
[1738027992305,0.24329094,677.96,676.44,0.29566554]
[1738027992506,0.24329094,677.96,676.45,0.27140801]
[1738027992706,0.24329094,677.96,676.46,0.2956568]
[1738027994507,0.2949983,677.97,676.46,0.2956568]
[1738027994702,0.24328371,677.96,676.46,0.2956568]
[1738027995407,1.09786583,677.82,676.46,0.2956568]
[1738027995607,0.24328371,677.81,676.46,0.2956568]
[1738027998211,1.09786583,677.82,676.46,0.2956568]
[1738027998506,0.24329627,677.81,676.46,0.2956568]
[1738027998711,1.3411621,677.81,676.46,0.2956568]
[1738027998910,1.09786583,677.81,676.46,0.2956568]
[1738027999112,1.09786583,677.81,676.47,0.27139074]
[1738028000009,0.24331409,677.8,676.46,0.2956568]
[1738028001012,1.09786583,677.81,676.46,0.2956568]
[1738028001713,1.09786583,677.82,676.46,0.2956568]
[1738028002514,0.24330434,677.81,676.47,0.2713953]
[1738028003014,0.24330434,677.81,676.48,0.29564806]
[1738028003209,0.24330434,677.81,676.49,0.2713953]
[1738028003512,0.24330434,677.81,676.5,0.29563932]
[1738028004509,0.24330434,677.81,676.51,0.27140417]
[1738028004709,0.24330434,677.81,676.52,0.29563058]
[1738028004915,1.09786583,677.76,676.53,0.27140417]
[1738028005109,0.24330434,677.75,676.54,0.29562184]
[1738028005314,1.09786583,677.76,676.54,0.29562184]
[1738028007917,0.24327613,677.75,676.54,0.29562184]
[1738028008411,1.09786583,677.72,676.54,0.29562184]
[1738028011524,1.09786583,677.7,676.54,0.29562184]
[1738028015425,1.09786583,677.76,676.54,0.29562184]
[1738028018627,1.09786583,677.71,676.54,0.29562184]
[1738028021529,1.09786583,677.81,676.54,0.29562184]
[1738028025535,1.09786583,677.79,676.54,0.29562184]
[1738028028336,1.09786583,677.79,676.55,0.27137381]
[1738028028536,1.09786583,677.86,676.56,0.2956131]
[1738028028736,0.24318864,677.85,676.57,0.27137381]
[1738028028935,0.24318864,677.85,676.58,0.29560436]
[1738028029537,1.09786583,677.86,676.58,0.29560436]
[1738028029735,0.24319375,677.85,676.58,0.29560436]
[1738028029935,1.09786583,677.86,676.58,0.29560436]
[1738028030136,1.09786583,677.86,676.59,0.27134148]
[1738028030437,1.09786583,677.86,676.6,0.29559562]
[1738028030732,1.09786583,677.86,676.61,0.27133432]
[1738028030937,1.09786583,677.86,676.62,0.29558688]
[1738028031637,1.09786583,677.75,676.62,0.29558688]
[1738028031935,1.09786583,677.75,676.63,0.27132658]
[1738028032137,1.09786583,677.75,676.64,0.29557815]
[1738028032836,1.09786583,677.75,676.65,0.2713265]
[1738028033036,1.09786583,677.75,676.66,0.29556941]
[1738028033331,1.09786583,677.75,676.67,0.27132796]
[1738028033536,1.09786583,677.75,676.68,0.29556067]
[1738028033836,1.09786583,677.75,676.69,0.27132739]
[1738028034037,1.09786583,677.75,676.7,0.29555194]
[1738028034236,1.09786583,677.75,676.71,0.27132739]
[1738028034438,1.09786583,677.75,676.72,0.2955432]
[1738028035139,1.09786583,677.9,676.72,0.2955432]
[1738028035332,0.24322347,677.89,676.72,0.2955432]
[1738028035532,0.24322347,677.89,676.73,0.27132969]
[1738028035733,0.24322347,677.89,676.74,0.29553447]
[1738028037839,1.09786583,677.86,676.74,0.29553447]
[1738028038138,0.24322347,677.85,676.74,0.29553447]
[1738028039638,1.09786583,677.86,676.74,0.29553447]
[1738028039839,0.2432382,677.85,676.74,0.29553447]
[1738028040540,1.09786583,677.86,676.74,0.29553447]
[1738028040733,0.24323921,677.85,676.74,0.29553447]
[1738028040937,0.24323921,677.85,676.75,0.27133417]
[1738028041136,0.24323921,677.85,676.76,0.29552574]
[1738028041940,0.24322506,677.84,676.76,0.29552574]
[1738028042133,0.24322506,677.88,676.76,0.29552574]
[1738028042339,1.09786583,677.89,676.76,0.29552574]
[1738028042539,0.24322619,677.88,676.76,0.29552574]
[1738028043541,1.09786583,677.89,676.76,0.29552574]
[1738028043747,0.24322082,677.88,676.76,0.29552574]
[1738028044441,1.09786583,677.89,676.76,0.29552574]
[1738028044644,0.24318295,677.88,676.76,0.29552574]
[1738028045343,0.24318295,677.91,676.76,0.29552574]